[Event "Swiss Youth-ch U14 2023"]
[Site "Olten"]
[Date "2023.05.26"]
[Round "1.1"]
[White "Stoll, Arturo"]
[Black "Malli, Suvirr"]
[Result "0-1"]
[ECO "B94"]
[WhiteElo "1607"]
[BlackElo "2114"]
[Annotator "TA"]
[PlyCount "116"]
[EventDate "2023.05.26"]
[EventType "swiss"]
[EventCountry "SUI"]
[SourceTitle "playchess.com"]
[Source "ChessBase"]
[SourceQuality "1"]
[TimeControl "5400+30"]

{[%evp 12,116,11,5,41,0,31,37,60,18,25,4,32,10,76,77,77,82,81,86,97,47,136,66,122,101,132,112,114,56,60,11,45,40,28,-4,-4,-4,0,-41,-33,-23,-23,-18,-14,-33,-20,-81,-84,-87,-29,-62,-62,-95,-39,-47,-41,-47,-12,-12,-12,-12,-12,-12,-14,-52,-51,-106,-14,-48,-29,-122,-18,-29,0,-141,-146,-180,-79,-193,-193,-193,-138,-193,-193,-232,-230,-223,0,-193,-173,-193,-175,-193,-150,-156,-150,-153,-85,-85,-21,-29992,-29993,-29994,-29995,-29995,-535]} 1. e4 {[%emt 0:00:03]} c5 {[%emt 0:00:37]} 2. Nf3 {[%emt 0:00:11]} d6 {[%emt 0:00:37]} 3. d4 {[%emt 0:00:08]} cxd4 {[%emt 0:00:11]} 4. Nxd4 {[%emt 0:00:09]} Nf6 {[%emt 0:00:10]} 5. Nc3 {[%emt 0:00:09]} a6 6. Bg5 {[%emt 0:00:30]} Nbd7 7. Bc4 {[%emt 0:00:30]} h6 {B94: Sicilian Najdorf: 6 Bg5 Nbd7.} 8. Be3 {[%emt 0:00:30]} g6 {[%emt 0:02:28]} (8... Qc7 $5 {[%cal Rc7c4]} 9. Bb3 e6 $11) 9. f4 {[%emt 0:00:30]} Bg7 {[%emt 0:00:30] White is slightly better.} 10. O-O {[%emt 0:40:20] [#]} (10. f5 {keeps more tension.} Ne5 11. Bb3 Nfg4 12. Bf4) 10... O-O $146 {[%emt 0:30:00]} ({Predecessor:} 10... Nc5 11. f5 b5 12. Bd5 Nxd5 13. Nxd5 Bd7 14. fxg6 fxg6 15. e5 dxe5 16. Qf3 Rf8 {1-0 Giurgiu,N (2137)-Nenciulescu,S (2056) CFriend SH-2004-0-00024 email (1)}) 11. a4 {[%emt 0:21:39]} Qc7 {[%emt 0:03:38]} 12. Be2 {[%emt 0:00:30]} b6 {[%emt 0:00:30]} (12... Nc5 $11) 13. Nd5 $16 {[%emt 0:00:30]} Nxd5 {[%emt 0:00:30]} 14. exd5 {[%emt 0:00:30]} Nf6 {[%emt 0:00:30]} 15. c4 {[%emt 0:13:27]} Bd7 {[%emt 0:23:24][%cal Ob6b5]} 16. Rc1 {[%emt 0:04:20]} (16. f5 $16) 16... Rac8 {[%emt 0:04:55]} (16... e5 $14 17. dxe6 fxe6) 17. b3 {[%emt 0:02:03]} (17. f5 $16) 17... Qb7 {[%emt 0:02:00]} (17... e6 $14) 18. Bf3 {[%emt 0:00:30]} b5 {[%emt 0:00:30]} 19. Nc6 {[%emt 0:00:30]} Rfe8 {[%emt 0:00:30]} 20. axb5 {[%emt 0:00:30]} (20. cxb5 $16 axb5 21. a5) 20... axb5 $14 {[%emt 0:00:30]} 21. Ra1 {[%emt 0:05:02]} (21. Bd4 $14) 21... bxc4 $11 {[%emt 0:12:20]} 22. bxc4 {[%emt 0:00:30]} Ra8 {[%emt 0:00:30]} 23. Rxa8 {[%emt 0:01:12]} Qxa8 {[%emt 0:00:41]} 24. Bd4 {[%emt 0:02:56]} Qa2 {[%emt 0:05:16] Inhibits Qb3.} 25. Qe2 {[%emt 0:01:37]} Qxe2 {[%emt 0:00:48]} 26. Bxe2 {[%emt 0:00:30]} e6 {[%emt 0:00:30]} 27. Bf3 {[%emt 0:00:30]} exd5 {[%emt 0:00:30]} 28. Bxf6 {[%emt 0:00:00]} (28. cxd5 $5 h5 29. Rc1 $11) 28... Bxf6 {[%emt 0:04:46]} 29. cxd5 {[%emt 0:00:29]} (29. Bxd5 $11 {keeps the balance.} Rc8 30. Ne5) 29... h5 {[%emt 0:00:30]} 30. Kf2 {[%emt 0:00:30]} h4 {[%emt 0:00:30]} (30... Ra8 $17) 31. Re1 {[%emt 0:00:30]} Ra8 {[%emt 0:00:30]} 32. g4 {[%emt 0:00:30]} g5 {[%emt 0:00:30]} (32... Ra4 $17 33. Ke3 Kg7) 33. f5 {[%emt 0:01:27]} Kf8 {[%emt 0:04:05]} 34. h3 {[%emt 0:00:30]} Ra3 {[%emt 0:00:30]} 35. Re3 {[%emt 0:00:30]} Bc3 {[%emt 0:00:30] Hoping for ...Bxc6.} 36. Kg2 {[%emt 0:00:30]} Ra2+ {[%emt 0:00:30]} 37. Re2 {[%emt 0:00:30]} Ra1 {[%emt 0:00:30]} 38. Rc2 {[%emt 0:00:30]} Bf6 {[%emt 0:00:30]} 39. Re2 {[%emt 0:00:08]} (39. Be2 $15) 39... Kg7 {[%emt 0:01:54]} (39... Bc8 $1 $17 {And now ...Ba6 would win.} 40. Nb4 Rb1) 40. Kf2 {[%emt 0:00:30]} Ra4 {[%emt 0:00:30]} (40... Bc8 $5 {[%cal Rc8a6]}) 41. Kg2 {[%emt 0:00:30]} (41. Re4 $11 Ra2+ 42. Re2) 41... Kf8 {[%emt 0:00:30]} ({Black should play} 41... Bc8 $1 $17 {aiming for ...Ba6.} 42. Re4 Ra2+ 43. Be2 Rd2) 42. Kf2 {[%emt 0:00:30]} Ra3 {[%emt 0:00:30]} 43. Kg2 {[%emt 0:00:30]} (43. Re3 $11 Ra2+ 44. Ke1) 43... Bc8 $1 $17 {[%emt 0:00:30]} 44. Rc2 {[%emt 0:00:18]} Kg7 {[%emt 0:00:38]} (44... Ba6 $1 $19 {and Black stays clearly on top.} 45. Rc1 Bc3) 45. Kf2 {[%emt 0:00:30] [#]} (45. Be2 $17 {was worth a try.}) 45... Ba6 $1 $19 {[%emt 0:00:30]} 46. Kg2 {[%emt 0:00:30]} Ra1 {[%emt 0:00:30]} (46... Bd3 $19 47. Rd2 Bc4) 47. Rf2 {[%emt 0:00:30]} (47. Be2 $17) 47... Bc4 {[%emt 0:00:30]} 48. Rd2 {[%emt 0:00:30]} Bf1+ {[%emt 0:00:30] This pair of bishops is nice.} 49. Kh2 {[%emt 0:00:30]} Bc4 $2 {[%emt 0:00:30]} (49... Bc3 $19 50. Rf2 Bd3) 50. Rc2 {[%emt 0:00:30]} (50. Kg2 $1 $11 {and White is okay.}) 50... Bb5 {[%emt 0:00:30]} 51. Kg2 {[%emt 0:00:04]} Rb1 {[%emt 0:00:30]} 52. Kf2 {[%emt 0:00:56]} Bb2 {[%emt 0:00:30]} 53. Be2 {[%emt 0:00:30]} Ba4 {[%emt 0:00:30]} 54. Rc4 {[%emt 0:00:30] [#]} Bb3 {[%emt 0:00:30]} (54... Ra1 $142 $1 55. Rb4 Bc3) 55. Rb4 $17 {[%emt 0:00:30]} Ba3 {[%emt 0:00:30]} ({Black should try} 55... Bxd5 $17 56. Ne7 Ba2) 56. Rb8 $2 {[%emt 0:00:30][%mdl 8192]} (56. Rb5 $11) 56... Bc5+ {[%emt 0:00:30] Black mates.} 57. Kg2 {[%emt 0:00:30]} Bxd5+ {[%emt 0:00:30]} 58. Bf3 {[%emt 0:00:30]} Rg1+ {[%emt 0:00:30][%mdl 64] Deflection.   Weighted Error Value: White=0.43/Black=0.30} 0-1

[Event "Swiss Youth-ch U14 2023"]
[Site "Olten"]
[Date "2023.05.26"]
[Round "1.2"]
[White "Gut, Lionel"]
[Black "Gafner, Lancelot"]
[Result "1-0"]
[ECO "D35"]
[WhiteElo "2054"]
[BlackElo "1641"]
[Annotator "RC"]
[PlyCount "81"]
[EventDate "2023.05.26"]
[EventType "swiss"]
[EventCountry "SUI"]
[SourceTitle "playchess.com"]
[Source "ChessBase"]
[SourceQuality "1"]
[TimeControl "5400+30"]

1. d4 {[%emt 0:00:11]} d5 {[%emt 0:00:05]} 2. c4 {[%emt 0:00:03]} e6 {[%emt 0:00:05]} 3. Nc3 {[%emt 0:00:05]} Nf6 {[%emt 0:00:06]} 4. cxd5 {[%emt 0:00:04]} exd5 {[%emt 0:00:09]} 5. Bg5 {[%emt 0:00:07]} Be7 {[%emt 0:00:06]} 6. e3 {[%emt 0:00:51]} O-O {[%emt 0:00:11]} 7. Bd3 {[%emt 0:00:05]} Nbd7 {[%emt 0:00:18]} 8. Nge2 {[%emt 0:00:11]} b6 {[%emt 0:00:15]} 9. O-O {[%emt 0:03:31]} Bb7 {[%emt 0:00:24]} 10. Rc1 {[%emt 0:01:57]} c5 {[%emt 0:03:56]} 11. Ng3 {[%emt 0:03:14]} Re8 {[%emt 0:03:09]} 12. Nf5 {[%emt 0:04:55]} Bf8 {[%emt 0:02:38]} 13. a4 {[%emt 0:08:28]} a6 {[%emt 0:03:54]} 14. Qf3 {[%emt 0:08:02]} h6 {[%emt 0:17:47]} 15. Bh4 {[%emt 0:01:57]} g6 {[%emt 0:09:53]} 16. Qg3 {[%emt 0:06:20]} Qb8 {[%emt 0:05:46]} 17. Bxf6 {[%emt 0:02:53]} Nxf6 {[%emt 0:02:08]} 18. Qh4 {[%emt 0:02:18]} Bg7 {[%emt 0:23:05]} 19. Nxh6+ {[%emt 0:03:30]} Kf8 {[%emt 0:01:47]} 20. Ng4 {[%emt 0:01:40]} Nxg4 {[%emt 0:00:46]} 21. Qxg4 {[%emt 0:00:10]} c4 {[%emt 0:00:23]} 22. Be2 {[%emt 0:01:34]} Bc6 {[%emt 0:00:47]} 23. Bf3 {[%emt 0:01:28]} Qb7 {[%emt 0:00:20]} 24. Qf4 {[%emt 0:03:13]} Rad8 {[%emt 0:01:36]} 25. Rb1 {[%emt 0:04:27]} b5 {[%emt 0:02:53]} 26. axb5 {[%emt 0:00:41]} axb5 {[%emt 0:00:14]} 27. b3 {[%emt 0:00:54]} Rd7 {[%emt 0:06:34]} 28. bxc4 {[%emt 0:00:24]} dxc4 {[%emt 0:02:19]} 29. d5 {[%emt 0:02:21]} Bxd5 {[%emt 0:01:41]} 30. Rxb5 {[%emt 0:02:07]} Qc6 {[%emt 0:00:51]} 31. Bxd5 {[%emt 0:06:58]} Rxd5 {[%emt 0:00:37]} 32. Nxd5 {[%emt 0:04:25]} Be5 {[%emt 0:01:51]} 33. Qh6+ {[%emt 0:00:30]} Bg7 {[%emt 0:00:10]} 34. Qh4 {[%emt 0:00:42]} Qxb5 {[%emt 0:01:12]} 35. Nc7 {[%emt 0:00:11]} Qb3 {[%emt 0:00:41]} 36. Nxe8 {[%emt 0:00:09]} Kxe8 {[%emt 0:00:05]} 37. Qe4+ {[%emt 0:00:14]} Kd7 {[%emt 0:00:28]} 38. Qd5+ {[%emt 0:00:11]} Ke7 {[%emt 0:00:34]} 39. Rd1 {[%emt 0:01:00]} Qb4 {[%emt 0:00:41]} 40. Qd7+ {[%emt 0:00:34]} Kf6 {[%emt 0:00:19]} 41. Qd4+ {[%emt 0:00:09]} 1-0

[Event "Swiss Youth-ch U14 2023"]
[Site "Olten"]
[Date "2023.05.26"]
[Round "1.3"]
[White "Delangle, Alexander"]
[Black "Udipi, Kala Kishan"]
[Result "1-0"]
[ECO "B31"]
[WhiteElo "1621"]
[BlackElo "1904"]
[Annotator "NA RC"]
[PlyCount "95"]
[EventDate "2023.05.26"]
[EventType "swiss"]
[EventCountry "SUI"]
[SourceTitle "playchess.com"]
[Source "ChessBase"]
[SourceQuality "1"]
[TimeControl "5400+30"]

1. e4 {[%emt 0:00:08]} c5 {[%emt 0:00:10]} 2. Nf3 {[%emt 0:00:09]} Nc6 {[%emt 0:00:13]} 3. Bb5 {[%emt 0:00:08]} g6 {[%emt 0:00:16]} 4. O-O {[%emt 0:00:26]} Bg7 {[%emt 0:00:26]} 5. Re1 {[%emt 0:00:51]} Nf6 {[%emt 0:00:31]} 6. e5 {[%emt 0:00:46]} Nd5 {[%emt 0:00:32]} 7. Nc3 {[%emt 0:00:26]} Nc7 {[%emt 0:01:28]} 8. Bxc6 {[%emt 0:01:35]} dxc6 {[%emt 0:00:38]} 9. Ne4 {[%emt 0:01:13]} Ne6 {[%emt 0:00:20]} 10. d3 {[%emt 1:29:48]} O-O {[%emt 1:30:56]} 11. Be3 {[%emt 0:00:30]} b6 {[%emt 0:00:30]} 12. Qd2 {[%emt 0:00:30]} Nd4 {[%emt 0:00:30]} 13. Nxd4 {[%emt 0:00:30]} cxd4 {[%emt 0:00:30]} 14. Bh6 {[%emt 0:00:30]} c5 {[%emt 0:00:30]} 15. Re2 {[%emt 0:00:30]} Re8 {[%emt 0:00:30]} 16. Ng3 {[%emt 0:00:00]} Bb7 {[%emt 0:00:00]} 17. Rae1 {[%emt 0:00:00]} Qd5 {[%emt 0:00:00]} 18. f3 {[%emt 0:00:00]} Qe6 {[%emt 0:00:00]} 19. Qg5 {[%emt 0:00:00]} Rac8 {[%emt 0:00:00]} 20. Bxg7 {[%emt 0:00:00]} Kxg7 {[%emt 0:00:00]} 21. Nh5+ {[%emt 0:03:00]} Kh8 $1 {[%emt 0:03:00]} 22. Nf4 {[%emt 0:00:00]} Qf5 {[%emt 0:00:30]} 23. Qh6 {[%emt 0:01:00]} g5 {[%emt 0:01:00]} 24. Nh3 {[%emt 0:00:30]} Rg8 {[%emt 0:00:30]} 25. Qh5 {[%emt 0:00:30]} Qg6 $1 {[%emt 0:00:30]} 26. Qg4 {[%emt 0:00:30]} Bc6 {[%emt 0:00:30]} 27. Nf2 {[%emt 0:00:30]} h5 {[%emt 0:00:30]} 28. Qh3 {[%emt 0:00:00]} Rcd8 {[%emt 0:00:00]} 29. Ne4 {[%emt 0:01:00]} h4 {[%emt 0:01:00]} 30. Nf2 {[%emt 0:00:30]} (30. f4 $11 {might be stronger.} Bd7 31. g4 gxf4 32. Qxh4+ Qh7 33. Qxh7+ Kxh7 34. h3) 30... Bd7 {[%emt 0:00:30]} 31. g4 {[%emt 0:00:00]} Qh6 {[%emt 0:00:30]} 32. Ne4 {[%emt 0:00:00]} Be6 {[%emt 0:01:00]} 33. Rf2 {[%emt 0:01:30]} Rd5 {[%emt 0:01:30]} 34. Nd2 {[%emt 0:00:30]} Bc8 {[%emt 0:00:30]} 35. Qg2 $11 {[%emt 0:00:30]} Rdd8 {[%emt 0:00:30]} 36. h3 {[%emt 0:00:00]} Bb7 {[%emt 0:00:00]} 37. Qh2 {[%emt 0:00:00]} Bd5 {[%emt 0:00:28]} 38. Ne4 {[%emt 0:00:00]} Bxe4 {[%emt 0:00:24]} 39. Rxe4 {[%emt 0:00:00]} Qe6 {[%emt 0:00:34]} 40. f4 {[%emt 0:02:30]} f6 {[%emt 0:01:04]} 41. exf6 {[%emt 0:00:30]} Qxa2 {[%emt 0:00:30]} 42. fxe7 {[%emt 0:00:30]} Rde8 {[%emt 0:00:30]} 43. fxg5 {[%emt 0:00:30]} Rxg5 {[%emt 0:00:30]} 44. Rf8+ {[%emt 0:00:30]} Kh7 {[%emt 0:00:30]} 45. Rxe8 {[%emt 0:00:30]} Qb1+ {[%emt 0:00:00]} 46. Kf2 Qxc2+ 47. Re2 {[%emt 0:01:00]} Qxd3 {[%emt 0:00:53]} 48. Rh8+ {[%emt 0:00:00]} 1-0

[Event "Swiss Youth-ch U14 2023"]
[Site "Olten"]
[Date "2023.05.26"]
[Round "1.4"]
[White "Kanana, Ziad"]
[Black "Van Aepelen, Nikolai"]
[Result "1-0"]
[ECO "B12"]
[WhiteElo "1828"]
[BlackElo "1623"]
[Annotator "NA RC"]
[PlyCount "97"]
[EventDate "2023.05.26"]
[EventType "swiss"]
[EventCountry "SUI"]
[SourceTitle "playchess.com"]
[Source "ChessBase"]
[SourceQuality "1"]
[TimeControl "5400+30"]

1. e4 {[%emt 0:00:05]} c6 {[%emt 0:00:14]} 2. d4 {[%emt 0:00:02]} d5 {[%emt 0:00:10]} 3. e5 {[%emt 0:00:03]} c5 {[%emt 0:00:05]} 4. dxc5 {[%emt 0:00:04]} Nc6 {[%emt 0:00:05]} 5. f4 {[%emt 0:00:04]} e6 {[%emt 0:01:34]} 6. Be3 {[%emt 0:00:05]} Nge7 {[%emt 0:00:08]} 7. Nf3 {[%emt 0:07:40]} Nf5 {[%emt 0:02:32]} 8. Bf2 {[%emt 0:00:16]} Qa5+ {[%emt 0:06:45]} 9. Qd2 {[%emt 0:03:00]} Bxc5 {[%emt 0:00:43]} 10. Qxa5 {[%emt 0:00:45]} Bxf2+ {[%emt 0:00:12]} 11. Kxf2 {[%emt 0:00:02]} Nxa5 {[%emt 0:00:14]} 12. g4 {[%emt 0:03:21]} Ne7 {[%emt 0:01:11]} 13. Nbd2 {[%emt 0:06:11]} Bd7 {[%emt 0:03:56]} 14. Bd3 {[%emt 0:18:33]} Rc8 {[%emt 0:07:52]} 15. Rhd1 {[%emt 0:05:49]} a6 {[%emt 0:06:56]} 16. b4 {[%emt 0:05:24]} Nac6 $11 {[%emt 0:12:16]} 17. a3 {[%emt 0:02:12]} b5 {[%emt 0:00:52]} (17... Na7 $11 {keeps the balance.}) 18. Nb3 {[%emt 0:02:49]} f6 {[%emt 0:11:31]} 19. Nc5 {[%emt 0:03:28]} fxe5 {[%emt 0:08:42]} 20. fxe5 {[%emt 0:00:35]} Ra8 {[%emt 0:04:33]} 21. c3 {[%emt 0:02:32]} Ra7 {[%emt 0:06:48]} 22. a4 {[%emt 0:07:38]} O-O {[%emt 0:01:20]} 23. Kg3 {[%emt 0:02:48]} bxa4 {[%emt 0:01:08]} 24. Nxd7 {[%emt 0:03:09]} Rxd7 {[%emt 0:00:15]} 25. Rxa4 {[%emt 0:00:32]} Ra7 {[%emt 0:18:26]} 26. Rda1 {[%emt 0:03:00]} Rc7 {[%emt 0:03:32]} 27. Rxa6 {[%emt 0:04:28]} h6 {[%emt 0:00:55]} 28. Ra8 {[%emt 0:04:25]} Nb8 {[%emt 0:00:41]} 29. R1a3 {[%emt 0:01:28]} Nec6 {[%emt 0:00:34]} 30. b5 {[%emt 0:01:11]} Rcf7 {[%emt 0:00:31]} 31. Be2 {[%emt 0:00:56]} Ne7 {[%emt 0:00:05]} 32. R8a7 {[%emt 0:05:34]} Kh7 {[%emt 0:00:52]} 33. Nd4 {[%emt 0:01:15]} Re8 {[%emt 0:00:28]} 34. b6 {[%emt 0:01:24]} g5 {[%emt 0:00:25]} 35. Bd3+ {[%emt 0:02:00]} Kg8 {[%emt 0:00:15]} 36. Be2 {[%emt 0:02:03]} Nc8 {[%emt 0:00:27]} 37. Rxf7 {[%emt 0:00:36]} Kxf7 {[%emt 0:00:03]} 38. b7 {[%emt 0:00:41]} Nb6 {[%emt 0:00:21]} 39. Nb5 {[%emt 0:00:40]} Re7 {[%emt 0:00:52]} 40. Nd6+ {[%emt 0:00:13]} Kg7 {[%emt 0:00:14]} 41. Rb3 {[%emt 0:01:18]} N6d7 {[%emt 0:00:25]} 42. Ra3 {[%emt 0:01:57]} Nb6 {[%emt 0:01:33]} 43. Ba6 {[%emt 0:00:34]} Kf8 {[%emt 0:00:26]} 44. Nc8 {[%emt 0:00:30]} Nxa6 {[%emt 0:00:40]} 45. Nxe7 {[%emt 0:00:25]} Nb8 {[%emt 0:00:06]} 46. Nc8 {[%emt 0:00:29]} N6d7 {[%emt 0:00:20]} 47. Ra8 {[%emt 0:00:39]} Nc6 {[%emt 0:00:50]} 48. Na7+ {[%emt 0:00:19]} Ncb8 {[%emt 0:00:10]} 49. Nc6 {[%emt 0:00:10]} 1-0

[Event "Swiss Youth-ch U14 2023"]
[Site "Olten"]
[Date "2023.05.26"]
[Round "1.5"]
[White "Papaux, Jeremie"]
[Black "Gut, Raphael"]
[Result "1/2-1/2"]
[ECO "D87"]
[WhiteElo "1491"]
[BlackElo "1817"]
[Annotator "NA RC"]
[PlyCount "67"]
[EventDate "2023.05.26"]
[EventType "swiss"]
[EventCountry "SUI"]
[SourceTitle "playchess.com"]
[Source "ChessBase"]
[SourceQuality "1"]
[TimeControl "5400+30"]

1. d4 {[%emt 0:00:03]} Nf6 {[%emt 0:00:04]} 2. c4 {[%emt 0:00:06]} g6 {[%emt 0:00:01]} 3. Nc3 {[%emt 0:00:06]} d5 {[%emt 0:00:04]} 4. cxd5 {[%emt 0:00:08]} Nxd5 {[%emt 0:00:03]} 5. e4 {[%emt 0:00:06]} Nxc3 {[%emt 0:00:03]} 6. bxc3 {[%emt 0:00:13]} Bg7 {[%emt 0:00:02]} 7. Bc4 {[%emt 0:00:10]} c5 {[%emt 0:00:19]} 8. Ne2 {[%emt 0:00:44]} O-O {[%emt 0:00:16]} 9. O-O {[%emt 0:00:06]} Nc6 {[%emt 0:00:45]} 10. Be3 {[%emt 0:00:08]} Bg4 {[%emt 0:01:35]} 11. f3 {[%emt 0:01:34]} Bd7 {[%emt 0:00:37]} 12. Rc1 {[%emt 0:14:33]} Qa5 {[%emt 0:20:22]} 13. Qb3 {[%emt 0:12:27]} Rab8 {[%emt 0:17:01]} 14. Rfd1 {[%emt 0:00:41]} b5 {[%emt 0:03:22]} 15. Bd5 {[%emt 0:00:08]} c4 {[%emt 0:00:20]} 16. Qc2 {[%emt 0:01:05]} e6 {[%emt 0:01:03]} 17. Bxc6 {[%emt 0:00:09]} Bxc6 {[%emt 0:00:02]} 18. Bf4 {[%emt 0:10:01]} Rb7 {[%emt 0:08:13]} 19. Bd6 {[%emt 0:02:18]} Rd8 {[%emt 0:01:46]} 20. Bb4 {[%emt 0:01:13]} Qc7 {[%emt 0:08:56]} 21. e5 {[%emt 0:01:02]} a5 {[%emt 0:04:33]} 22. Bd6 {[%emt 0:00:23]} Qd7 {[%emt 0:00:51]} 23. Rb1 {[%emt 0:03:05]} b4 {[%emt 0:02:04]} 24. Re1 {[%emt 0:03:07]} Ba4 {[%emt 0:04:53]} 25. Qd2 {[%emt 0:03:52]} b3 {[%emt 0:01:20]} 26. Ng3 {[%emt 0:03:53]} f5 {[%emt 0:07:03]} 27. exf6 {[%emt 0:01:17]} Qxd6 {[%emt 0:00:12]} 28. fxg7 {[%emt 0:00:29]} Kxg7 {[%emt 0:02:12]} 29. Ne4 {[%emt 0:00:56]} Qd5 {[%emt 0:01:02]} 30. Qf2 {[%emt 0:04:57]} Rb5 {[%emt 0:03:59]} 31. Nc5 {[%emt 0:01:39]} Rxc5 {[%emt 0:00:05]} 32. dxc5 {[%emt 0:00:07]} bxa2 {[%emt 0:00:11]} 33. Qxa2 {[%emt 0:01:18]} Qxc5+ {[%emt 0:00:05]} 34. Kf1 {[%emt 0:03:10]} 1/2-1/2

[Event "Swiss Youth-ch U14 2023"]
[Site "Olten"]
[Date "2023.05.26"]
[Round "1.6"]
[White "Breyer, Philippe"]
[Black "Paholok, Adam"]
[Result "1-0"]
[ECO "C01"]
[WhiteElo "1766"]
[BlackElo "1556"]
[Annotator "NA RC"]
[PlyCount "79"]
[EventDate "2023.05.26"]
[EventType "swiss"]
[EventCountry "SUI"]
[SourceTitle "playchess.com"]
[Source "ChessBase"]
[SourceQuality "1"]
[TimeControl "5400+30"]

1. e4 {[%emt 0:00:02]} e6 {[%emt 0:00:20]} 2. d4 {[%emt 0:00:05]} d5 {[%emt 0:00:15]} 3. Bd3 {[%emt 0:00:05]} dxe4 {[%emt 0:05:11]} 4. Bxe4 {[%emt 0:00:05]} c5 {[%emt 0:00:34]} 5. Ne2 {[%emt 0:00:41]} Nf6 {[%emt 0:00:21]} 6. Bf3 {[%emt 0:00:38]} cxd4 {[%emt 0:03:05]} 7. Qxd4 {[%emt 0:00:41]} Qxd4 {[%emt 0:00:58]} 8. Nxd4 {[%emt 0:00:02]} Bc5 {[%emt 0:00:46]} 9. Nb5 {[%emt 0:00:27]} Na6 {[%emt 0:01:36]} 10. a3 {[%emt 0:01:25]} O-O {[%emt 0:00:56]} 11. c4 {[%emt 0:12:07]} e5 {[%emt 0:05:39]} 12. b4 {[%emt 0:15:43]} Bd4 {[%emt 0:17:29]} 13. Nxd4 {[%emt 0:05:41]} exd4 {[%emt 0:00:30]} 14. O-O {[%emt 0:03:59]} Rd8 {[%emt 0:01:51]} 15. Bf4 {[%emt 0:08:43]} Be6 {[%emt 0:04:01]} 16. Bxb7 {[%emt 0:02:27]} Bxc4 {[%emt 0:00:11]} 17. Rc1 {[%emt 0:01:19]} Nd5 {[%emt 0:28:48]} 18. Bxa8 {[%emt 0:02:43]} Nxf4 {[%emt 0:00:35]} 19. Rxc4 {[%emt 0:00:07]} Rxa8 {[%emt 0:00:05]} 20. g3 {[%emt 0:02:38]} Ne2+ {[%emt 0:00:28]} 21. Kf1 {[%emt 0:00:05]} Re8 {[%emt 0:00:07]} 22. Ra2 {[%emt 0:03:35]} d3 {[%emt 0:04:25]} 23. Nc3 {[%emt 0:06:47]} Nc1 {[%emt 0:01:16]} 24. Rd2 {[%emt 0:00:43]} Rd8 {[%emt 0:06:08]} 25. Nd1 {[%emt 0:02:24]} Ne2 {[%emt 0:06:52]} 26. Rxd3 {[%emt 0:01:09]} Re8 {[%emt 0:00:22]} 27. Re3 {[%emt 0:01:07]} Nxg3+ {[%emt 0:00:20]} 28. hxg3 {[%emt 0:00:07]} Rd8 {[%emt 0:00:15]} 29. Ke2 {[%emt 0:00:57]} Nb8 {[%emt 0:00:44]} 30. Rc7 {[%emt 0:00:16]} a6 {[%emt 0:00:31]} 31. Ree7 {[%emt 0:00:24]} Rf8 {[%emt 0:01:14]} 32. Ne3 {[%emt 0:00:21]} h5 {[%emt 0:01:12]} 33. Nf5 {[%emt 0:00:15]} h4 {[%emt 0:00:53]} 34. Nxh4 {[%emt 0:00:16]} Kh8 {[%emt 0:00:23]} 35. Rxf7 {[%emt 0:00:11]} Re8+ {[%emt 0:00:12]} 36. Kf3 {[%emt 0:00:06]} a5 {[%emt 0:00:26]} 37. Rxg7 {[%emt 0:00:09]} Nd7 {[%emt 0:00:10]} 38. Rcxd7 {[%emt 0:00:16]} Re3+ {[%emt 0:00:43]} 39. fxe3 {[%emt 0:00:15]} a4 {[%emt 0:00:07]} 40. Kf2 {[%emt 0:31:29]} 1-0

[Event "Swiss Youth-ch U14 2023"]
[Site "Olten"]
[Date "2023.05.26"]
[Round "1.7"]
[White "Haas, Anthony"]
[Black "Breyer, Thierry"]
[Result "0-1"]
[ECO "E11"]
[WhiteElo "1530"]
[BlackElo "1697"]
[Annotator "NA RC"]
[PlyCount "52"]
[EventDate "2023.05.26"]
[EventType "swiss"]
[EventCountry "SUI"]
[SourceTitle "playchess.com"]
[Source "ChessBase"]
[SourceQuality "1"]
[TimeControl "5400+30"]

1. d4 {[%emt 0:00:03]} Nf6 {[%emt 0:00:00]} 2. c4 {[%emt 0:00:02]} e6 {[%emt 0:00:00]} 3. g3 {[%emt 0:00:02]} Bb4+ {[%emt 0:00:00]} 4. Bd2 {[%emt 0:00:06]} c5 {[%emt 0:00:00]} 5. Bxb4 {[%emt 0:01:06]} cxb4 {[%emt 0:00:00]} 6. Bg2 {[%emt 0:01:31]} O-O {[%emt 0:00:25]} 7. Nf3 {[%emt 0:01:30]} d6 {[%emt 0:00:12]} 8. Nbd2 {[%emt 0:05:11]} Nc6 {[%emt 0:00:17]} 9. O-O {[%emt 0:01:35]} e5 {[%emt 0:00:53]} 10. d5 {[%emt 0:03:19]} Nb8 {[%emt 0:00:38]} 11. e4 {[%emt 0:15:00]} a5 {[%emt 0:01:56]} 12. a3 {[%emt 0:09:31]} Na6 {[%emt 0:02:22]} 13. Qc2 {[%emt 0:06:00]} Qb6 {[%emt 0:04:07]} 14. axb4 {[%emt 0:10:55]} Nxb4 {[%emt 0:00:36]} 15. Qc3 {[%emt 0:02:27]} Nd7 {[%emt 0:08:11]} 16. Ra3 {[%emt 0:15:27]} Nc5 {[%emt 0:01:44]} 17. Ne1 {[%emt 0:02:00]} f5 {[%emt 0:02:10]} 18. Nc2 {[%emt 0:08:10]} Nbd3 {[%emt 0:13:32]} 19. Nb3 {[%emt 0:02:42]} fxe4 {[%emt 0:02:49]} 20. Nxa5 {[%emt 0:04:43]} Nxf2 {[%emt 0:30:58]} 21. Qe3 {[%emt 0:03:51]} Ng4 {[%emt 0:01:01]} 22. Rxf8+ {[%emt 0:02:59]} Kxf8 {[%emt 0:00:03]} 23. Qe2 {[%emt 0:01:01]} Nd3+ {[%emt 0:00:48]} 24. Kh1 {[%emt 0:00:15]} Ngf2+ {[%emt 0:00:22]} 25. Kg1 {[%emt 0:00:06]} Nh3+ {[%emt 0:00:09]} 26. Kf1 {[%emt 0:03:58]} Qg1# {[%emt 0:30:17]} 0-1